bitfinex-derivatives/quotes_SOLF0:USTF0_20250318
["timestamp","ask_amount","ask_price","bid_price","bid_amount"]
[1742282040560,5.475e-05,124.74,124.71,0.06168449]
[1742282041063,5.475e-05,124.74,124.71,8.07968449]
[1742282041964,5.475e-05,124.74,124.72,8.0177]
[1742282042156,8.01665475,124.74,124.71,0.06168449]
[1742282042763,5.475e-05,124.74,124.71,8.07968449]
[1742282042954,5.475e-05,124.74,124.71,0.06168449]
[1742282043555,26.48710196,124.73,124.71,0.06168449]
[1742282043760,31.18,124.72,124.71,0.06168449]
[1742282044166,39.1977,124.72,124.71,0.06168449]
[1742282045165,31.18,124.72,124.67,32.73828768]
[1742282045468,26.48710196,124.71,124.67,32.73828768]
[1742282045867,8.0195,124.7,124.67,32.73828768]
[1742282046070,31.32,124.69,124.65,8.0219]
[1742282046467,0.05794267,124.68,124.66,0.06148006]
[1742282046970,8.07834267,124.68,124.66,0.06148006]
[1742282047166,0.05794267,124.68,124.66,0.06148006]
[1742282047464,8.07824267,124.68,124.66,0.06148006]
[1742282047971,0.05794267,124.68,124.66,0.06148006]
[1742282050267,8.07884267,124.68,124.66,0.06148006]
[1742282050873,8.021,124.67,124.66,0.06148006]
[1742282053374,0.05794267,124.68,124.66,8.08298006]
[1742282053871,0.05794267,124.68,124.66,0.06148006]
[1742282054270,31.28,124.67,124.66,8.08308006]
[1742282054670,0.05794267,124.68,124.66,0.06148006]
[1742282054975,31.31794267,124.68,124.66,0.06148006]
[1742282055171,31.31794267,124.68,124.67,8.021]
[1742282055469,0.05794267,124.68,124.67,8.021]
[1742282056271,31.24,124.7,124.66,26.54858202]
[1742282056581,31.24,124.71,124.66,26.54858202]
[1742282056874,31.24,124.73,124.68,26.48710196]
[1742282057378,31.24,124.73,124.72,8.0177]
[1742282058080,31.24,124.73,124.71,8.0181]
[1742282058374,31.24,124.73,124.7,2.1842]
[1742282058375,39.2574,124.73,124.69,0.05279045]
[1742282058579,39.2574,124.73,124.7,8.0185]
[1742282060483,39.2574,124.73,124.69,8.07219045]
[1742282060680,8.0178,124.72,124.69,8.07219045]
[1742282060879,31.24,124.73,124.69,0.05279045]
[1742282061881,8.0181,124.72,124.69,8.07249045]
[1742282062581,8.0181,124.72,124.69,0.05279045]
[1742282063884,8.0185,124.71,124.69,0.05279045]
[1742282064073,31.12,124.7,124.69,0.05279045]
[1742282064273,31.12,124.7,124.69,8.07249045]
[1742282065780,31.12,124.7,124.69,0.05279045]
[1742282068486,31.12,124.7,124.69,8.07249045]
[1742282070694,31.12,124.7,124.69,0.05279045]
[1742282071496,31.12,124.7,124.69,8.07249045]
[1742282075303,31.12,124.7,124.69,0.05279045]
[1742282076297,31.12,124.7,124.69,8.07249045]
[1742282078005,31.12,124.7,124.69,0.05279045]
[1742282079103,39.139,124.7,124.69,0.05279045]
[1742282083809,8.0216,124.66,124.63,2.1495]
[1742282084008,30.6,124.65,124.62,2.0763]
[1742282084307,38.6224,124.65,124.62,10.1002]
[1742282084603,38.6224,124.65,124.62,2.0763]
[1742282084814,24.9973465,124.63,124.59,10.2287]
[1742282085000,24.9973465,124.63,124.62,0.05397086]
[1742282085199,30.62,124.63,124.62,0.05397086]
[1742282086208,38.6435,124.63,124.62,0.05397086]
[1742282088909,30.62,124.63,124.62,0.05397086]
[1742282090207,0.06093667,124.64,124.62,0.05397086]
[1742282090508,47.5333465,124.63,124.53,8.48667325]
[1742282090712,16.9733465,124.59,124.53,18.9716465]
[1742282091011,30.82,124.58,124.53,18.9716465]
[1742282091712,0.05987266,124.57,124.54,8.0896947]
[1742282093502,0.05987266,124.57,124.54,0.0605947]
[1742282094818,0.05987266,124.57,124.55,8.0282]
[1742282095315,0.05987266,124.57,124.54,0.0605947]
[1742282095619,30.77987266,124.57,124.54,0.0605947]
[1742282095809,30.77987266,124.57,124.56,8.028]
[1742282100515,0.05987266,124.57,124.56,8.028]
[1742282101214,0.05987266,124.57,124.55,8.0284]
[1742282101411,0.05987266,124.57,124.54,0.0605947]
[1742282103515,30.58,124.56,124.55,8.0284]
[1742282104115,0.05987266,124.57,124.54,0.0605947]
[1742282104612,0.05987266,124.57,124.55,26.58134566]
[1742282104813,8.0239,124.63,124.55,26.58134566]
[1742282105116,30.58,124.62,124.57,26.58134566]
[1742282105316,30.58,124.62,124.6,8.0251]
[1742282105512,38.6043,124.62,124.57,26.58134566]
[1742282105916,0.05688101,124.61,124.58,0.06161042]
[1742282106119,0.05688101,124.61,124.6,8.0255]
[1742282106521,30.61688101,124.61,124.6,8.0255]
[1742282106712,0.05688101,124.61,124.6,8.0255]
[1742282109219,0.05688101,124.61,124.59,8.0258]
[1742282109816,1.39688911,124.71,124.59,311.50134566]
[1742282110020,15.11940077,124.72,124.67,26.58134566]
[1742282110217,30.94,124.77,124.69,26.58134566]
[1742282110420,30.94,124.77,124.73,8.0167]
[1742282110815,30.94,124.77,124.71,26.58134566]
[1742282111014,0.05770493,124.76,124.74,0.05600107]
[1742282111214,30.97770493,124.76,124.74,0.05600107]
[1742282112317,30.95770493,124.76,124.74,0.05600107]
[1742282113023,30.95770493,124.76,124.75,8.0158]
[1742282113221,0.05770493,124.76,124.75,8.0158]
[1742282116218,4.93e-06,124.76,124.75,8.0158]
[1742282116420,4.93e-06,124.76,124.75,34.59714566]
[1742282116722,281.0765,124.85,124.75,34.60134566]
[1742282116919,30.78,124.84,124.77,26.58134566]
[1742282117112,30.78,124.84,124.82,8.0108]
[1742282117315,30.78,124.84,124.77,26.58134566]
[1742282117516,30.78,124.83,124.77,26.58134566]
[1742282117722,30.78,124.83,124.82,8.0113]
[1742282119719,30.78,124.83,124.81,8.0119]
[1742282121222,30.78,124.83,124.8,8.0124]
[1742282121422,30.78,124.83,124.79,26.63951493]
[1742282121825,0.05678799,124.84,124.81,8.0116]
[1742282123023,0.05678799,124.84,124.81,26.58134566]
[1742282123618,0.05678799,124.84,124.82,8.0108]
[1742282124013,0.05678799,124.84,124.82,8.06259367]
[1742282124418,0.05678799,124.84,124.83,8.0107]
[1742282125821,0.05678799,124.84,124.82,0.05179367]
[1742282126324,0.05678799,124.84,124.83,8.0107]
[1742282126926,0.05678799,124.84,124.82,8.06249367]
[1742282129224,0.05678799,124.84,124.82,0.05179367]
[1742282130928,8.06728799,124.84,124.82,0.05179367]
[1742282131125,0.05678799,124.84,124.82,0.05179367]
[1742282131429,8.0107,124.83,124.82,0.05179367]
[1742282131629,0.05678799,124.84,124.82,0.05179367]
[1742282132029,8.06708799,124.84,124.82,0.05179367]
[1742282132430,0.05678799,124.84,124.82,0.05179367]
[1742282133228,8.0107,124.83,124.82,0.05179367]
[1742282133430,0.05678799,124.84,124.82,0.05179367]
[1742282133731,8.06708799,124.84,124.82,0.05179367]
[1742282134435,0.05678799,124.84,124.82,0.05179367]
[1742282134822,0.05678799,124.84,124.82,2.17139367]
[1742282135035,0.05678799,124.84,124.83,8.0107]
[1742282135849,0.05678799,124.84,124.82,10.18249367]
[1742282136138,30.59678799,124.84,124.82,0.05179367]
[1742282137030,30.59678799,124.84,124.83,8.0107]
[1742282137739,30.59678799,124.84,124.82,8.06279367]
[1742282138432,11.43286,124.9,124.83,8.0107]
[1742282138738,30.48,124.89,124.81,28.64814566]
[1742282138934,30.48,124.89,124.86,8.0084]
[1742282139234,30.48,124.89,124.83,26.58134566]
[1742282139732,8.0073,124.89,124.85,8.06545424]
[1742282139933,30.44,124.88,124.85,8.06545424]
[1742282140130,30.44,124.88,124.85,0.05635424]
[1742282140834,30.44,124.88,124.85,8.06545424]
[1742282141030,30.42,124.87,124.85,8.06545424]
[1742282141437,30.42,124.87,124.85,0.05635424]
[1742282142241,30.42,124.87,124.85,8.06515424]
[1742282143339,30.36,124.87,124.86,8.0087]
[1742282143541,30.36,124.88,124.86,8.0087]
[1742282146144,30.36,124.88,124.85,0.05635424]
[1742282146541,30.36,124.88,124.85,26.6376999]
[1742282146748,41.73286,124.9,124.85,26.6376999]
[1742282147249,41.73286,124.9,124.88,8.0072]
[1742282147448,49.73956,124.9,124.84,2.0909]
[1742282147643,41.73286,124.9,124.88,0.05989055]
[1742282148149,49.73906,124.9,124.88,0.05989055]
[1742282148548,41.73286,124.9,124.88,0.05989055]
[1742282149038,49.73936,124.9,124.88,0.05989055]
[1742282149242,41.73286,124.9,124.88,0.05989055]
[1742282149551,49.73906,124.9,124.88,0.05989055]
[1742282151651,8.0068,124.89,124.88,0.05989055]
[1742282153041,49.73926,124.9,124.88,0.05989055]
[1742282153450,41.73286,124.9,124.88,0.05989055]
[1742282153651,49.73936,124.9,124.88,0.05989055]
[1742282154648,8.0068,124.89,124.88,0.05989055]
[1742282157346,49.73936,124.9,124.88,0.05989055]
[1742282157850,41.73286,124.9,124.88,0.05989055]
[1742282158445,49.73916,124.9,124.88,0.05989055]
[1742282160548,8.0068,124.89,124.88,0.05989055]
[1742282161049,49.73956,124.9,124.88,0.05989055]
[1742282162450,41.73286,124.9,124.88,0.05989055]
[1742282163352,11.43286,124.9,124.89,24.93367072]
[1742282165156,11.43286,124.9,124.89,8.0068]
[1742282166058,6e-05,124.9,124.89,34.43542134]
[1742282166261,30.16,124.94,124.93,8.0043]
[1742282166756,8.0014,124.98,124.94,8.0036]
[1742282167061,30.1,124.97,124.95,0.06046536]
[1742282168358,38.1018,124.97,124.95,0.06046536]
[1742282168564,56.52862134,124.97,124.95,0.06046536]
[1742282168751,56.52862134,124.97,124.87,302.72862134]
[1742282169361,8.0041,124.94,124.88,8.0072]
[1742282169554,30.1,124.93,124.88,8.0072]
[1742282169957,0.05623691,124.92,124.89,0.05164271]
[1742282170765,8.06163691,124.92,124.89,0.05164271]
[1742282171867,0.05623691,124.92,124.89,0.05164271]
[1742282172574,8.0059,124.91,124.89,0.05164271]
[1742282172773,30.1,124.9,124.89,0.05164271]
[1742282173265,38.1062,124.9,124.89,0.05164271]
[1742282173874,30.1,124.9,124.83,8.0104]
[1742282174564,30.1,124.9,124.81,26.42862134]
[1742282174565,43.2652823,124.95,124.88,13.21431067]
[1742282174763,15.03374389,124.95,124.89,19.47891067]
[1742282174964,0.05348398,124.93,124.9,0.05927206]
[1742282179482,8.05348398,124.93,124.9,0.05927206]
[1742282179785,26.42862134,124.91,124.84,1.60205062]
[1742282179976,30.1,124.9,124.84,1.60205062]
[1742282180782,0.05408235,124.88,124.86,0.05660388]
[1742282180984,8.0092,124.86,124.84,1.60205062]
[1742282181680,34.43802134,124.85,124.79,8.013]
[1742282181878,30.1,124.84,124.77,34.86388768]
[1742282182079,8.0107,124.83,124.81,0.05963592]
[1742282182285,0.05519653,124.82,124.77,32.73828768]
[1742282182586,56.52862134,124.81,124.77,32.73828768]
[1742282183381,64.54102134,124.81,124.77,32.73828768]
[1742282183689,64.54102134,124.81,124.78,0.0591368]
[1742282183987,56.52862134,124.81,124.78,0.0591368]
[1742282184180,56.58252868,124.81,124.78,0.0591368]
[1742282184780,8.013,124.8,124.78,0.0591368]
[1742282185086,56.58252868,124.81,124.78,0.0591368]
[1742282185285,30.15390734,124.81,124.78,0.0591368]
[1742282185686,56.58252868,124.81,124.78,0.0591368]
[1742282185886,64.59482868,124.81,124.78,0.0591368]
[1742282186286,38.16620734,124.81,124.78,0.0591368]
[1742282187386,8.013,124.8,124.78,0.0591368]
[1742282187790,56.58252868,124.81,124.78,0.0591368]
[1742282188188,8.0131,124.8,124.78,0.0591368]
[1742282188792,8.0133,124.79,124.78,0.0591368]
[1742282191191,34.44862134,124.79,124.7,4.2503]
[1742282191390,26.42862134,124.77,124.7,4.2503]
[1742282191586,8.0171,124.73,124.68,2.1435]
[1742282191790,30.12,124.72,124.68,2.1435]
[1742282192192,38.1378,124.72,124.68,10.1635]
[1742282192393,0.0520686,124.71,124.69,0.05586626]
[1742282192892,8.0704686,124.71,124.69,0.05586626]
[1742282193092,0.0520686,124.71,124.69,0.05586626]
[1742282196596,26.48068994,124.71,124.69,0.05586626]
[1742282196797,26.48068994,124.71,124.63,4.232]
[1742282196992,26.42862134,124.71,124.64,8.0226]
[1742282197201,28.49922134,124.71,124.64,8.0226]
[1742282197599,8.0214,124.67,124.62,8.024]
[1742282197799,30.14,124.66,124.61,28.45302134]
[1742282197991,30.14,124.65,124.64,8.0229]
[1742282198807,30.14,124.65,124.63,0.05759142]
[1742282200002,38.1624,124.65,124.63,0.05759142]
[1742282201595,8.0229,124.64,124.63,0.05759142]
[1742282202202,8.0251,124.61,124.58,4.1876]
[1742282202404,30.14,124.6,124.55,8.0283]
[1742282202606,30.14,124.59,124.55,8.0283]
[1742282202903,26.42862134,124.63,124.55,8.0283]
[1742282202904,30.14,124.58,124.55,8.0283]
[1742282203105,30.14,124.57,124.56,8.028]
[1742282203303,30.16,124.57,124.53,6.2899]
[1742282203499,30.16,124.57,124.55,8.08389255]
[1742282203700,30.16,124.57,124.55,0.05559255]
[1742282203910,30.16,124.56,124.55,0.05559255]
[1742282204607,30.16,124.56,124.55,8.08429255]
[1742282210709,30.16,124.56,124.55,0.05559255]
[1742282211307,30.16,124.56,124.55,8.08429255]
[1742282213114,30.21645228,124.58,124.57,8.0274]
[1742282214511,0.05645228,124.58,124.57,8.0274]
[1742282214810,30.21645228,124.58,124.57,8.0274]
[1742282219611,30.21645228,124.58,124.56,8.0277]
[1742282220218,38.24335228,124.58,124.55,8.08399255]
[1742282220412,30.21645228,124.58,124.55,0.05559255]
[1742282220812,0.05645228,124.58,124.57,8.0274]
[1742282221016,30.16,124.63,124.56,42.52359502]
[1742282221214,30.16,124.62,124.56,72.68359502]
[1742282221419,30.16,124.62,124.61,8.0245]
[1742282224116,30.16,124.62,124.6,0.05068276]
[1742282224617,8.0248,124.61,124.6,0.05068276]
[1742282224817,30.16,124.62,124.6,0.05068276]
[1742282225916,38.1846,124.62,124.6,0.05068276]
[1742282226118,30.16,124.62,124.6,0.05068276]
[1742282226925,30.16,124.62,124.6,8.07578276]
[1742282227417,30.16,124.62,124.6,0.05068276]
[1742282227622,30.16,124.62,124.61,8.0248]
[1742282227822,30.16,124.62,124.6,0.05068276]
[1742282228324,30.16,124.62,124.6,8.07548276]
[1742282228525,30.16,124.62,124.6,0.05068276]
[1742282228724,30.16,124.62,124.61,8.0248]
[1742282229424,30.16,124.62,124.6,8.07588276]
[1742282230425,30.16,124.62,124.6,0.05068276]
[1742282230822,38.1845,124.62,124.6,0.05068276]
[1742282231325,30.16,124.62,124.6,0.05068276]
[1742282231826,8.0248,124.61,124.6,0.05068276]
[1742282232527,38.1845,124.62,124.6,0.05068276]
[1742282233421,8.0248,124.61,124.6,0.05068276]
[1742282234225,132.0248,124.61,124.6,0.05068276]
[1742282235524,30.16,124.61,124.6,0.05068276]
[1742282235929,43.79775208,124.66,124.6,0.05068276]
[1742282235930,15.10800918,124.66,124.6,341.69532566]
[1742282236225,45.26800918,124.7,124.63,26.5646429]
[1742282236618,30.16,124.7,124.63,26.5646429]
[1742282236823,8.0181,124.72,124.63,26.5646429]
[1742282237024,0.05241004,124.68,124.65,0.05755736]
[1742282237223,30.16,124.67,124.65,0.05755736]
[1742282239924,8.0216,124.66,124.65,0.05755736]
[1742282240121,26.5646429,124.66,124.62,6.08567884]
[1742282240528,26.5646429,124.64,124.62,6.08567884]
[1742282240728,30.16,124.63,124.62,6.08567884]
[1742282241121,38.1841,124.63,124.57,8.0273]
[1742282241326,38.1841,124.63,124.61,0.05775496]
[1742282241529,30.16,124.63,124.61,0.05775496]
[1742282241729,30.21414133,124.63,124.58,8.0263]
[1742282241929,30.16,124.63,124.61,0.0605124]
[1742282242133,0.0586451,124.62,124.61,0.0605124]
[1742282244834,8.0828451,124.62,124.61,0.0605124]
[1742282249443,50.58788118,124.62,124.53,32.73828768]
[1742282249631,42.50923608,124.58,124.5,32.73828768]
[1742282249835,30.16,124.57,124.5,32.73828768]
[1742282250541,0.05590779,124.55,124.52,0.05191455]
[1742282250837,15.10800918,124.65,124.54,42.50923608]
[1742282251044,30.16,124.64,124.59,8.0261]
[1742282251830,0.05719121,124.63,124.6,0.05354066]
[1742282254642,8.08079121,124.63,124.6,0.05354066]
[1742282255441,0.05719121,124.63,124.6,0.05354066]
[1742282256448,8.0248,124.61,124.6,0.05354066]
[1742282256648,38.1848,124.61,124.6,0.05354066]
[1742282260341,30.16,124.61,124.5,32.73828768]
[1742282260543,30.16,124.61,124.51,6.472]
[1742282260745,42.50923608,124.6,124.53,8.0295]
[1742282261044,8.0279,124.57,124.51,6.472]
[1742282261246,30.16,124.56,124.51,6.472]
[1742282261544,42.50923608,124.6,124.51,6.472]
[1742282261545,30.21380698,124.55,124.53,0.05520776]
[1742282261745,30.16,124.54,124.53,0.05520776]
[1742282263148,38.1893,124.54,124.53,0.05520776]
[1742282265850,30.16,124.54,124.53,0.05520776]
[1742282267742,38.1893,124.54,124.53,0.05520776]
[1742282267946,0.06136021,124.55,124.53,0.05520776]
[1742282268255,0.06136021,124.55,124.54,8.0293]
[1742282268757,30.16,124.56,124.53,0.05520776]
[1742282268949,30.16,124.56,124.55,8.0287]
[1742282269753,30.16,124.56,124.54,4.2504]
[1742282270052,8.0293,124.54,124.53,0.05520776]
[1742282284272,8.0324,124.5,124.48,6.3486]
[1742282284475,30.18,124.49,124.48,6.3486]
[1742282287378,30.18,124.49,124.48,14.3818]
[1742282289982,30.18,124.49,124.48,6.3486]
[1742282290982,30.18,124.49,124.48,14.3818]
[1742282292984,1.6809,124.59,124.48,14.3886]
[1742282293289,26.58945138,124.59,124.49,26.58945138]
[1742282293482,30.18,124.58,124.49,26.58945138]
[1742282293887,38.2073,124.58,124.49,26.58945138]
[1742282294085,30.18,124.58,124.54,8.029]
[1742282294291,0.05760923,124.55,124.54,8.029]
[1742282294589,30.18,124.55,124.54,8.029]
[1742282296091,0.05696743,124.56,124.55,8.0287]
[1742282296388,30.23696743,124.56,124.55,8.0287]
[1742282297196,0.05696743,124.56,124.55,8.0287]
[1742282297383,30.18,124.57,124.54,4.2049]
[1742282297782,26.58945138,124.63,124.54,4.2049]
[1742282297991,47.76963,124.62,124.54,4.2049]
[1742282298184,8.0271,124.58,124.54,4.2049]
[1742282298390,38.2071,124.58,124.54,4.2049]
[1742282298594,0.0563222,124.57,124.55,0.05308534]
[1742282298793,8.0841222,124.57,124.55,0.05308534]
[1742282298992,0.0563222,124.57,124.55,0.05308534]
[1742282299493,8.028,124.56,124.55,0.05308534]
[1742282302694,34.67347358,124.57,124.55,0.05308534]
[1742282302898,26.64577358,124.57,124.55,0.05308534]
[1742282303195,8.0302,124.53,124.49,2.1295]
[1742282303393,30.16,124.52,124.49,2.1295]
[1742282303592,30.16,124.52,124.49,10.1617]
[1742282304090,30.16,124.52,124.49,2.1295]
[1742282304290,30.16,124.52,124.49,0.05261746]
[1742282304291,30.21820166,124.52,124.49,0.05261746]
[1742282304795,8.0317,124.51,124.49,0.05261746]
[1742282306397,8.0319,124.5,124.49,0.05261746]
[1742282306797,30.21820166,124.52,124.49,0.05261746]
[1742282306798,8.0315,124.51,124.49,0.05261746]
[1742282307199,30.21820166,124.52,124.49,0.05261746]
[1742282307398,8.0319,124.5,124.49,0.05261746]
[1742282310206,8.0316,124.51,124.49,0.05261746]
[1742282311302,30.21820166,124.52,124.49,0.05261746]
[1742282311498,0.05820166,124.52,124.49,0.05261746]
[1742282311704,30.18,124.51,124.49,0.05261746]
[1742282312298,0.05820166,124.52,124.49,0.05261746]
[1742282312498,26.91410166,124.52,124.49,0.05261746]
[1742282312702,30.18,124.54,124.49,26.64206884]
[1742282312900,30.18,124.54,124.52,8.03]
[1742282313209,30.18,124.54,124.46,30.18]
[1742282313503,8.031,124.52,124.49,8.0323]
[1742282313707,30.23958644,124.51,124.49,8.09041344]
[1742282313908,38.27088644,124.51,124.49,8.09041344]
[1742282315106,8.0319,124.5,124.49,0.05811344]
[1742282317608,30.23958644,124.51,124.49,0.05811344]
[1742282317609,38.27108644,124.51,124.49,0.05811344]
[1742282318011,30.23958644,124.51,124.49,0.05811344]
[1742282318808,8.0319,124.5,124.49,0.05811344]
[1742282323411,64.86063782,124.51,124.49,0.05811344]
[1742282323710,56.82903782,124.51,124.49,0.05811344]
[1742282324513,64.86063782,124.51,124.49,0.05811344]
[1742282324913,56.82903782,124.51,124.49,0.05811344]
[1742282325317,30.18,124.5,124.49,0.05811344]
[1742282326713,38.2119,124.5,124.49,0.05811344]
[1742282331315,30.18,124.5,124.41,2.1883]
[1742282331618,26.58945138,124.49,124.41,2.1883]
[1742282331820,26.58945138,124.49,124.44,8.0355]
[1742282332316,8.0344,124.47,124.45,0.05062121]
[1742282332520,30.18,124.46,124.45,0.05062121]
[1742282333520,38.2145,124.46,124.45,0.05062121]
[1742282334219,30.18,124.46,124.45,0.05062121]
[1742282334722,30.18,124.46,124.45,8.08572121]
[1742282335320,30.23906155,124.48,124.47,8.0339]
[1742282338713,6.155e-05,124.48,124.47,8.0339]
[1742282340124,26.58945138,124.57,124.54,8.0287]
[1742282340324,26.58945138,124.57,124.49,26.58945138]
[1742282340520,30.18,124.56,124.49,26.58945138]
[1742282340725,26.58945138,124.57,124.55,8.0281]
[1742282340925,30.16,124.56,124.55,8.0281]
[1742282342430,30.16,124.56,124.54,0.05809433]
[1742282343027,30.16,124.56,124.55,8.0287]
[1742282343518,0.0597638,124.57,124.54,0.05809433]
[1742282343719,8e-05,124.55,124.54,0.05809433]
[1742282344432,8e-05,124.55,124.54,16.10739433]
[1742282345322,4.38e-05,124.57,124.54,8.07809433]
[1742282345520,4.38e-05,124.57,124.54,0.05809433]
[1742282346029,4.38e-05,124.57,124.55,26.58945138]
[1742282347436,4.38e-05,124.57,124.56,8.028]
[1742282348337,30.1600438,124.57,124.54,0.05809433]
[1742282350840,30.1600438,124.57,124.55,8.0284]
[1742282351040,30.1600438,124.57,124.54,0.05809433]
[1742282351238,30.1600438,124.57,124.56,8.028]
[1742282352046,30.1600438,124.57,124.55,8.0281]
[1742282352241,30.1600438,124.57,124.54,0.05809433]
[1742282353146,30.1600438,124.57,124.55,8.0287]
[1742282353347,30.1600438,124.57,124.54,0.05809433]
[1742282353744,30.1600438,124.57,124.56,8.028]
[1742282353946,30.1600438,124.57,124.54,0.05809433]
[1742282354533,30.1600438,124.57,124.54,8.08709433]
[1742282354739,38.1875438,124.57,124.54,8.08709433]
[1742282355643,4.38e-05,124.57,124.54,0.05809433]
[1742282356546,4.38e-05,124.57,124.56,8.028]
[1742282369147,26.58945138,124.68,124.56,8.02]
[1742282369350,2.1067,124.67,124.59,26.58945138]
[1742282369554,30.14,124.66,124.59,26.58945138]
[1742282369754,30.14,124.66,124.63,8.0234]
[1742282369755,38.1619,124.66,124.63,8.0234]
[1742282370058,30.14,124.66,124.63,8.0234]
[1742282370256,30.1994159,124.66,124.63,8.07649314]
[1742282370956,8.0223,124.65,124.63,0.05309314]
[1742282371153,56.78886728,124.66,124.63,0.05309314]
[1742282371455,26.58945138,124.64,124.58,8.0265]
[1742282371651,34.1821,124.63,124.58,8.0265]
[1742282372046,8.0245,124.62,124.58,8.0265]
[1742282372248,34.1821,124.63,124.55,56.70945138]
[1742282372455,0.05485214,124.61,124.59,0.05889093]
[1742282372653,0.05485214,124.61,124.6,8.025]
[1742282372959,0.05485214,124.61,124.59,0.05889093]
[1742282373160,30.12,124.6,124.59,0.05889093]
[1742282373854,38.1455,124.6,124.59,0.05889093]
[1742282375349,30.12,124.6,124.59,8.08499093]
[1742282375956,30.12,124.6,124.59,0.05889093]
[1742282380265,38.1455,124.6,124.59,0.05889093]
[1742282380560,30.12,124.6,124.59,0.05889093]
[1742282382362,30.12,124.6,124.59,8.08499093]
[1742282383466,30.12,124.6,124.59,0.05889093]
[1742282383764,8.0271,124.58,124.52,59.72987673]
[1742282383966,30.12,124.57,124.56,8.028]
[1742282405380,0.05765018,124.58,124.57,8.0274]
[1742282406375,5.018e-05,124.58,124.57,8.0274]
[1742282406675,30.12,124.62,124.56,26.5773095]
[1742282406871,30.12,124.63,124.59,26.5773095]
[1742282407073,30.12,124.63,124.61,16.9914284]
[1742282407778,30.17213791,124.63,124.61,17.04291405]
[1742282407983,30.17213791,124.63,124.62,8.0242]
[1742282409582,30.15213791,124.63,124.62,8.0242]
[1742282410183,0.05213791,124.63,124.62,8.0242]
[1742282411495,30.15213791,124.63,124.61,0.05148565]
[1742282411893,16.9914284,124.62,124.61,0.05148565]
[1742282412294,25.0156284,124.62,124.61,0.05148565]
[1742282412497,16.9914284,124.62,124.57,8.0269]
[1742282412897,8.0255,124.61,124.57,8.0269]
[1742282413098,30.1,124.6,124.58,8.0267]
[1742282413699,30.15658834,124.6,124.58,8.0802119]
[1742282413900,38.18208834,124.6,124.58,8.0802119]
[1742282414604,8.0261,124.59,124.58,0.0535119]
[1742282415508,25.0175284,124.59,124.58,0.0535119]
[1742282417207,30.15658834,124.6,124.58,0.0535119]
[1742282417601,30.15658834,124.6,124.58,8.0799119]
[1742282418211,30.15658834,124.6,124.59,8.0261]
[1742282419207,30.15658834,124.6,124.58,8.0799119]
[1742282420605,30.15658834,124.6,124.59,8.0261]
[1742282421603,0.05658834,124.6,124.59,8.0261]
[1742282421908,30.15658834,124.6,124.59,8.0261]
[1742282422104,8.834e-05,124.6,124.59,8.0261]
[1742282422510,30.1,124.65,124.64,8.0227]
[1742282423110,30.1,124.66,124.62,16.9914284]
[1742282423413,47.0914284,124.66,124.6,16.9914284]
[1742282423612,0.05117017,124.65,124.63,0.05792608]
[1742282424014,8.07377017,124.65,124.63,0.05792608]
[1742282429811,8.0229,124.64,124.63,0.05792608]
[1742282431016,8.07377017,124.65,124.63,0.05792608]
[1742282431816,8.07377017,124.65,124.63,8.08132608]
[1742282432819,8.07377017,124.65,124.63,0.05792608]
[1742282433706,0.05117017,124.65,124.63,0.05792608]
[1742282433905,0.05117017,124.65,124.64,16.9914284]
[1742282434114,0.05117017,124.65,124.64,25.0143284]
[1742282434511,7.017e-05,124.65,124.64,25.0143284]
[1742282434916,7.017e-05,124.65,124.64,29.1496284]
[1742282436917,7.017e-05,124.65,124.64,59.2296284]
[1742282437612,30.08,124.7,124.69,8.0197]
[1742282437806,301.9095284,124.72,124.67,16.9914284]
[1742282437807,16.9914284,124.72,124.67,16.9914284]
[1742282438012,30.08,124.72,124.67,16.9914284]
[1742282438212,30.08,124.72,124.69,16.9914284]
[1742282438620,30.08,124.72,124.71,8.0184]
[1742282438821,30.13791347,124.72,124.71,8.0184]
[1742282439013,30.13791347,124.72,124.69,17.05080071]
[1742282439217,30.13791347,124.72,124.69,0.05937231]
[1742282439413,16.9914284,124.71,124.69,0.05937231]
[1742282439718,8.019,124.7,124.69,0.05937231]
[1742282439914,30.13791347,124.72,124.69,0.05937231]
[1742282440118,47.12934187,124.72,124.69,0.05937231]